[Event "Goteborg Open 2024"]
[Site "Goteborgs Schackcentrum, Vegatan 20, Gothenburg, Sweden"]
[Date "2024.08.02"]
[Round "3.8"]
[White "Al Waeli, Laith"]
[Black "Torres, Lucas"]
[Result "1-0"]
[TimeControl "15 minutes + 5 seconds per move from move one (Round 1 - 4) / 90 minutes + 30 seconds per move from move one (Round 5 - 8)"]
[WhiteTitle "FM"]
[WhiteFideId "4801059"]
[BlackFideId "1769464"]
[WhiteElo "2077"]
[BlackElo "1861"]

1. Nf3 {[%clk 00:15:06]} {[%emt 00:00:03]} Nf6 {[%clk 00:15:07]} {[%emt
00:00:05]} 2. g3 {[%clk 00:15:09]} {[%emt 00:00:02]} g6 {[%clk 00:15:04]}
{[%emt 00:00:07]} 3. Bg2 {[%clk 00:15:10]} {[%emt 00:00:03]} Bg7 {[%clk
00:15:08]} {[%emt 00:00:03]} 4. O-O {[%clk 00:15:11]} {[%emt 00:00:03]} O-O
{[%clk 00:15:10]} {[%emt 00:00:03]} 5. d3 {[%clk 00:15:11]} {[%emt 00:00:06]}
d5 {[%clk 00:14:52]} {[%emt 00:00:23]} 6. Nbd2 {[%clk 00:15:13]} {[%emt
00:00:03]} Bf5 {[%clk 00:14:23]} {[%emt 00:00:33]} 7. c3 {[%clk 00:14:45]}
{[%emt 00:00:34]} c5 {[%clk 00:13:51]} {[%emt 00:00:36]} 8. e4 {[%clk
00:14:34]} {[%emt 00:00:16]} dxe4 {[%clk 00:13:38]} {[%emt 00:00:19]} 9. dxe4
{[%clk 00:14:37]} {[%emt 00:00:02]} Nxe4 {[%clk 00:12:53]} {[%emt 00:00:49]} 10.
Qb3 {[%clk 00:11:53]} {[%emt 00:02:49]} Qb6 {[%clk 00:09:02]} {[%emt 00:03:57]}
11. Nc4 {[%clk 00:10:01]} {[%emt 00:01:56]} Qxb3 {[%clk 00:08:20]} {[%emt
00:00:47]} 12. axb3 {[%clk 00:10:04]} {[%emt 00:00:02]} Nc6 {[%clk 00:08:22]}
{[%emt 00:00:04]} 13. Nh4 {[%clk 00:09:58]} {[%emt 00:00:11]} Rad8 {[%clk
00:05:24]} {[%emt 00:03:03]} 14. g4 {[%clk 00:09:57]} {[%emt 00:00:05]} Bxg4
{[%clk 00:02:45]} {[%emt 00:02:44]} 15. Bxe4 {[%clk 00:09:57]} {[%emt
00:00:06]} f5 {[%clk 00:01:57]} {[%emt 00:00:53]} 16. Bxc6 {[%clk 00:08:34]}
{[%emt 00:01:28]} bxc6 {[%clk 00:02:00]} {[%emt 00:00:02]} 17. Rxa7 {[%clk
00:08:15]} {[%emt 00:00:24]} f4 {[%clk 00:00:37]} {[%emt 00:01:29]} 18. f3
{[%clk 00:08:18]} {[%emt 00:00:01]} Bh3 {[%clk 00:00:39]} {[%emt 00:00:03]} 19.
Re1 {[%clk 00:07:57]} {[%emt 00:00:25]} Rf7 {[%clk 00:00:19]} {[%emt 00:00:26]}
20. Ng2 {[%clk 00:07:31]} {[%emt 00:00:29]} Bh6 {[%clk 00:00:09]} {[%emt
00:00:18]} 21. Ne5 {[%clk 00:07:18]} {[%emt 00:00:16]} Rf5 {[%clk 00:00:09]}
{[%emt 00:00:05]} 22. Kf2 {[%clk 00:06:43]} {[%emt 00:00:39]} Bg7 {[%clk
00:00:08]} {[%emt 00:00:07]} 23. Nxc6 {[%clk 00:06:34]} {[%emt 00:00:15]} Re8
{[%clk 00:00:06]} {[%emt 00:00:08]} 24. Nxe7+ {[%clk 00:06:31]} {[%emt
00:00:07]} Kf8 {[%clk 00:00:08]} {[%emt 00:00:03]} 25. Nxf5 {[%clk 00:06:29]}
{[%emt 00:00:06]} Rxe1 {[%clk 00:00:09]} {[%emt 00:00:03]} 26. Nxe1 {[%clk
00:06:11]} {[%emt 00:00:23]} Bxf5 {[%clk 00:00:11]} {[%emt 00:00:03]} 27. Bxf4
{[%clk 00:06:06]} {[%emt 00:00:10]} h5 {[%clk 00:00:06]} {[%emt 00:00:11]} 28.
Bd6+ {[%clk 00:05:56]} {[%emt 00:00:15]} Ke8 {[%clk 00:00:08]} {[%emt
00:00:04]} 29. h4 {[%clk 00:05:40]} {[%emt 00:00:19]} Bf6 {[%clk 00:00:07]}
{[%emt 00:00:06]} 30. Kg3 {[%clk 00:05:38]} {[%emt 00:00:06]} Kd8 {[%clk
00:00:08]} {[%emt 00:00:06]} 31. Ng2 {[%clk 00:05:23]} {[%emt 00:00:20]} g5
{[%clk 00:00:10]} {[%emt 00:00:03]} 32. Rf7 {[%clk 00:05:13]} {[%emt 00:00:14]}
gxh4+ {[%clk 00:00:06]} {[%emt 00:00:10]} 33. Nxh4 {[%clk 00:05:10]} {[%emt
00:00:07]} Bxh4+ {[%clk 00:00:07]} {[%emt 00:00:04]} 34. Kxh4 {[%clk 00:05:12]}
{[%emt 00:00:04]} Be6 {[%clk 00:00:11]} 35. Rg7 {[%clk 00:04:56]} {[%emt
00:00:20]} Bxb3 {[%clk 00:00:12]} {[%emt 00:00:05]} 36. f4 {[%clk 00:04:52]}
{[%emt 00:00:09]} c4 {[%clk 00:00:11]} {[%emt 00:00:06]} 37. f5 {[%clk
00:04:53]} {[%emt 00:00:04]} Ba4 {[%clk 00:00:15]} {[%emt 00:00:02]} 38. f6
{[%clk 00:04:52]} {[%emt 00:00:05]} Be8 {[%clk 00:00:17]} {[%emt 00:00:03]} 39.
Rg8 {[%clk 00:04:45]} {[%emt 00:00:12]} Kd7 {[%clk 00:00:20]} {[%emt 00:00:02]}
40. Kg5 {[%clk 00:04:42]} {[%emt 00:00:08]} Bf7 {[%clk 00:00:22]} {[%emt
00:00:02]} 41. Rg7 {[%clk 00:04:41]} {[%emt 00:00:07]} Ke6 {[%clk 00:00:25]}
{[%emt 00:00:02]} 42. Rh7 {[%clk 00:04:26]} {[%emt 00:00:19]} Be8 {[%clk
00:00:27]} {[%emt 00:00:04]} 43. Re7+ {[%clk 00:04:16]} {[%emt 00:00:14]} 1-0

[Event "Goteborg Open 2024"]
[Site "Goteborgs Schackcentrum, Vegatan 20, Gothenburg, Sweden"]
[Date "2024.08.02"]
[Round "3.9"]
[White "Kallen, Jonas"]
[Black "Lindholm, Marcus"]
[Result "1-0"]
[TimeControl "15 minutes + 5 seconds per move from move one (Round 1 - 4) / 90 minutes + 30 seconds per move from move one (Round 5 - 8)"]
[WhiteFideId "1712896"]
[BlackFideId "1743473"]
[WhiteElo "2017"]
[BlackElo "1851"]

1. e4 {[%emt 00:00:12]} c5 {[%clk 00:15:00]} {[%emt 00:00:02]} 2. Nf3 {[%clk
00:15:05]} {[%emt 00:00:08]} Nc6 {[%clk 00:15:02]} {[%emt 00:00:02]} 3. d4
{[%clk 00:15:07]} {[%emt 00:00:03]} cxd4 {[%clk 00:15:03]} {[%emt 00:00:04]} 4.
Nxd4 {[%clk 00:15:10]} {[%emt 00:00:02]} Nf6 {[%clk 00:15:07]} {[%emt
00:00:01]} 5. Nc3 {[%clk 00:15:14]} {[%emt 00:00:01]} e5 {[%clk 00:15:10]}
{[%emt 00:00:02]} 6. Ndb5 {[%clk 00:15:17]} {[%emt 00:00:02]} d6 {[%clk
00:15:14]} 7. Bg5 {[%clk 00:15:20]} {[%emt 00:00:03]} a6 {[%clk 00:15:16]}
{[%emt 00:00:04]} 8. Na3 {[%clk 00:15:23]} {[%emt 00:00:01]} Be7 {[%clk
00:15:19]} 9. Bxf6 {[%clk 00:15:20]} {[%emt 00:00:09]} Bxf6 {[%clk 00:15:22]}
{[%emt 00:00:02]} 10. Nd5 {[%clk 00:15:24]} {[%emt 00:00:02]} Bg5 {[%clk
00:15:21]} {[%emt 00:00:06]} 11. c3 {[%clk 00:15:12]} {[%emt 00:00:17]} O-O
{[%clk 00:14:54]} {[%emt 00:00:32]} 12. Nc4 {[%clk 00:14:35]} {[%emt 00:00:41]}
f5 {[%clk 00:14:29]} {[%emt 00:00:29]} 13. Bd3 {[%clk 00:13:34]} {[%emt
00:01:07]} b5 {[%clk 00:12:29]} {[%emt 00:02:05]} 14. Ncb6 {[%clk 00:13:15]}
{[%emt 00:00:24]} fxe4 {[%clk 00:11:38]} {[%emt 00:00:57]} 15. Bxe4 {[%clk
00:12:47]} {[%emt 00:00:33]} Rb8 {[%clk 00:11:32]} {[%emt 00:00:10]} 16. Nxc8
{[%clk 00:12:32]} {[%emt 00:00:20]} Rxc8 {[%clk 00:11:31]} {[%emt 00:00:06]} 17.
O-O {[%clk 00:12:01]} {[%emt 00:00:37]} Ne7 {[%clk 00:11:01]} {[%emt 00:00:34]}
18. Qb3 {[%clk 00:09:41]} {[%emt 00:02:24]} Kh8 {[%clk 00:10:14]} {[%emt
00:00:53]} 19. Rad1 {[%clk 00:09:07]} {[%emt 00:00:39]} Rc5 {[%clk 00:07:34]}
{[%emt 00:02:44]} 20. Rd3 {[%clk 00:07:19]} {[%emt 00:01:53]} Nxd5 {[%clk
00:07:18]} {[%emt 00:00:23]} 21. Rxd5 {[%clk 00:06:48]} {[%emt 00:00:35]} Rxd5
{[%clk 00:07:19]} {[%emt 00:00:04]} 22. Qxd5 {[%clk 00:06:51]} {[%emt
00:00:02]} Qb6 {[%clk 00:07:21]} {[%emt 00:00:02]} 23. Qd3 {[%clk 00:06:38]}
{[%emt 00:00:18]} h6 {[%clk 00:06:48]} {[%emt 00:00:39]} 24. Qh3 {[%clk
00:05:31]} {[%emt 00:01:11]} Qd8 {[%clk 00:06:22]} {[%emt 00:00:31]} 25. Qe6
{[%clk 00:04:08]} {[%emt 00:01:28]} Qf6 {[%clk 00:06:16]} {[%emt 00:00:12]} 26.
Qxf6 {[%clk 00:03:47]} {[%emt 00:00:27]} Bxf6 {[%clk 00:06:05]} {[%emt
00:00:15]} 27. Rd1 {[%clk 00:03:11]} {[%emt 00:00:41]} Be7 {[%clk 00:05:36]}
{[%emt 00:00:33]} 28. Kf1 {[%clk 00:02:51]} {[%emt 00:00:26]} Rb8 {[%clk
00:05:38]} {[%emt 00:00:03]} 29. a3 {[%clk 00:02:36]} {[%emt 00:00:20]} Kg8
{[%clk 00:05:31]} {[%emt 00:00:12]} 30. Ke2 {[%clk 00:02:31]} {[%emt 00:00:11]}
Kf7 {[%clk 00:05:06]} {[%emt 00:00:29]} 31. g3 {[%clk 00:02:06]} {[%emt
00:00:30]} Rb6 {[%clk 00:05:03]} {[%emt 00:00:08]} 32. Kd3 {[%clk 00:02:03]}
{[%emt 00:00:08]} Bd8 {[%clk 00:03:58]} {[%emt 00:01:10]} 33. Bd5+ {[%clk
00:01:56]} {[%emt 00:00:12]} Ke7 {[%clk 00:03:55]} {[%emt 00:00:09]} 34. Ke4
{[%clk 00:01:54]} {[%emt 00:00:06]} a5 {[%clk 00:03:45]} {[%emt 00:00:15]} 35.
Rd3 {[%clk 00:01:42]} {[%emt 00:00:16]} Kd7 {[%clk 00:03:08]} {[%emt 00:00:41]}
36. Kf5 {[%clk 00:01:27]} {[%emt 00:00:21]} Bf6 {[%clk 00:03:10]} {[%emt
00:00:02]} 37. Kg6 {[%clk 00:01:11]} {[%emt 00:00:22]} b4 {[%clk 00:03:13]}
{[%emt 00:00:02]} 38. cxb4 {[%clk 00:01:10]} {[%emt 00:00:05]} axb4 {[%clk
00:03:15]} {[%emt 00:00:04]} 39. a4 {[%clk 00:01:14]} {[%emt 00:00:01]} e4
{[%clk 00:02:59]} {[%emt 00:00:21]} 40. Rb3 {[%clk 00:00:59]} {[%emt 00:00:20]}
Kc7 {[%clk 00:02:09]} {[%emt 00:00:53]} 41. Kf7 {[%clk 00:00:54]} {[%emt
00:00:12]} Kb8 {[%clk 00:01:42]} {[%emt 00:00:33]} 42. Bxe4 {[%clk 00:00:53]}
{[%emt 00:00:05]} Ka7 {[%clk 00:01:45]} {[%emt 00:00:02]} 43. Bd3 {[%clk
00:00:53]} {[%emt 00:00:06]} d5 {[%clk 00:01:37]} {[%emt 00:00:12]} 44. a5
{[%clk 00:00:52]} {[%emt 00:00:06]} Rb8 {[%clk 00:01:12]} {[%emt 00:00:30]} 45.
Bf1 {[%clk 00:00:47]} {[%emt 00:00:10]} Bd4 {[%clk 00:00:38]} {[%emt 00:00:39]}
46. f4 {[%clk 00:00:33]} {[%emt 00:00:19]} g5 {[%clk 00:00:10]} {[%emt
00:00:33]} 47. fxg5 {[%clk 00:00:32]} {[%emt 00:00:06]} hxg5 {[%clk 00:00:13]}
{[%emt 00:00:01]} 48. Ke6 {[%clk 00:00:32]} {[%emt 00:00:05]} Bg1 {[%clk
00:00:10]} {[%emt 00:00:09]} 49. h3 {[%clk 00:00:32]} {[%emt 00:00:05]} d4
{[%clk 00:00:10]} {[%emt 00:00:05]} 50. Rf3 {[%clk 00:00:28]} {[%emt 00:00:08]}
Be3 {[%clk 00:00:07]} {[%emt 00:00:08]} 51. Rf7+ {[%clk 00:00:32]} {[%emt
00:00:03]} Ka8 {[%clk 00:00:11]} {[%emt 00:00:01]} 52. Bg2+ {[%clk 00:00:35]}
{[%emt 00:00:02]} 1-0

[Event "Goteborg Open 2024"]
[Site "Goteborgs Schackcentrum, Vegatan 20, Gothenburg, Sweden"]
[Date "2024.08.02"]
[Round "3.10"]
[White "Wesslen, Ulf"]
[Black "Gallardo, Guillermo"]
[Result "1-0"]
[TimeControl "15 minutes + 5 seconds per move from move one (Round 1 - 4) / 90 minutes + 30 seconds per move from move one (Round 5 - 8)"]
[WhiteFideId "1705199"]
[BlackFideId "1773488"]
[WhiteElo "1953"]
[BlackElo "1822"]

1. d4 {[%clk 00:15:06]} {[%emt 00:00:04]} Nf6 {[%clk 00:15:08]} {[%emt
00:00:02]} 2. c4 {[%clk 00:15:08]} {[%emt 00:00:03]} b6 {[%clk 00:15:11]}
{[%emt 00:00:04]} 3. Nc3 {[%clk 00:14:37]} {[%emt 00:00:35]} Bb7 {[%clk
00:15:10]} {[%emt 00:00:06]} 4. Bg5 {[%clk 00:13:31]} {[%emt 00:01:10]} Ne4
{[%clk 00:14:29]} {[%emt 00:00:46]} 5. Nxe4 {[%clk 00:12:38]} {[%emt 00:00:59]}
Bxe4 {[%clk 00:14:32]} {[%emt 00:00:02]} 6. f3 {[%clk 00:12:05]} {[%emt
00:00:39]} Bb7 {[%clk 00:14:20]} {[%emt 00:00:17]} 7. e4 {[%clk 00:11:58]}
{[%emt 00:00:11]} h6 {[%clk 00:14:21]} {[%emt 00:00:04]} 8. Be3 {[%clk
00:10:38]} {[%emt 00:01:24]} e6 {[%clk 00:14:14]} {[%emt 00:00:13]} 9. Qd2
{[%clk 00:09:23]} {[%emt 00:01:20]} a5 {[%clk 00:14:03]} {[%emt 00:00:16]} 10.
Ne2 {[%clk 00:08:50]} {[%emt 00:00:38]} d5 {[%clk 00:12:07]} {[%emt 00:02:01]}
11. cxd5 {[%clk 00:07:42]} {[%emt 00:01:12]} exd5 {[%clk 00:11:59]} {[%emt
00:00:14]} 12. e5 {[%clk 00:07:45]} {[%emt 00:00:02]} Nd7 {[%clk 00:11:43]}
{[%emt 00:00:21]} 13. Nc3 {[%clk 00:07:24]} {[%emt 00:00:26]} Bb4 {[%clk
00:11:13]} {[%emt 00:00:36]} 14. Bd3 {[%clk 00:07:01]} {[%emt 00:00:27]} Qe7
{[%clk 00:09:17]} {[%emt 00:02:01]} 15. O-O {[%clk 00:06:26]} {[%emt 00:00:39]}
Ba6 {[%clk 00:08:08]} {[%emt 00:01:16]} 16. Bxa6 {[%clk 00:05:24]} {[%emt
00:01:06]} Rxa6 {[%clk 00:08:10]} {[%emt 00:00:03]} 17. Qd3 {[%clk 00:05:27]}
{[%emt 00:00:01]} Ra7 {[%clk 00:07:18]} {[%emt 00:00:58]} 18. Nxd5 {[%clk
00:05:23]} {[%emt 00:00:09]} Qe6 {[%clk 00:07:17]} {[%emt 00:00:05]} 19. Nf4
{[%clk 00:05:01]} {[%emt 00:00:28]} Qe7 {[%clk 00:07:03]} {[%emt 00:00:19]} 20.
a3 {[%clk 00:04:58]} {[%emt 00:00:08]} Bc5 {[%clk 00:05:33]} {[%emt 00:01:35]}
21. dxc5 {[%clk 00:04:26]} {[%emt 00:00:37]} Nxe5 {[%clk 00:05:18]} {[%emt
00:00:20]} 22. Qc3 {[%clk 00:04:21]} {[%emt 00:00:09]} O-O {[%clk 00:05:03]}
{[%emt 00:00:21]} 23. cxb6 {[%clk 00:03:57]} {[%emt 00:00:29]} cxb6 {[%clk
00:04:16]} {[%emt 00:00:52]} 24. Bxb6 {[%clk 00:03:57]} {[%emt 00:00:05]} Raa8
{[%clk 00:03:46]} {[%emt 00:00:36]} 25. Rfe1 {[%clk 00:03:43]} {[%emt
00:00:18]} f6 {[%clk 00:03:45]} {[%emt 00:00:06]} 26. Bc5 {[%clk 00:03:45]}
{[%emt 00:00:03]} Qf7 {[%clk 00:03:21]} {[%emt 00:00:28]} 27. Bxf8 {[%clk
00:03:46]} {[%emt 00:00:04]} Rxf8 {[%clk 00:03:24]} {[%emt 00:00:04]} 28. Rad1
{[%clk 00:03:41]} {[%emt 00:00:09]} Qa7+ {[%clk 00:03:10]} {[%emt 00:00:19]} 29.
Qe3 {[%clk 00:03:37]} {[%emt 00:00:09]} Qb7 {[%clk 00:03:11]} {[%emt 00:00:04]}
30. Qd4 {[%clk 00:03:20]} {[%emt 00:00:22]} Rc8 {[%clk 00:02:41]} {[%emt
00:00:34]} 31. Qd5+ {[%clk 00:03:09]} {[%emt 00:00:16]} Qxd5 {[%clk 00:02:40]}
{[%emt 00:00:07]} 32. Rxd5 {[%clk 00:03:12]} 1-0

[Event "Goteborg Open 2024"]
[Site "Goteborgs Schackcentrum, Vegatan 20, Gothenburg, Sweden"]
[Date "2024.08.02"]
[Round "3.11"]
[White "Shchetinin, Oleg"]
[Black "Lennerstad, Allan"]
[Result "0-1"]
[TimeControl "15 minutes + 5 seconds per move from move one (Round 1 - 4) / 90 minutes + 30 seconds per move from move one (Round 5 - 8)"]
[WhiteFideId "1740210"]
[BlackFideId "1723774"]
[WhiteElo "1742"]
[BlackElo "1950"]

1. e4 {[%clk 00:15:07]} {[%emt 00:00:04]} c5 {[%clk 00:15:09]} {[%emt
00:00:01]} 2. a3 {[%clk 00:15:10]} {[%emt 00:00:02]} g6 {[%clk 00:15:01]}
{[%emt 00:00:13]} 3. b4 {[%clk 00:14:19]} {[%emt 00:00:56]} Bg7 {[%clk
00:15:04]} {[%emt 00:00:02]} 4. c3 {[%clk 00:14:22]} {[%emt 00:00:02]} Qc7
{[%clk 00:14:37]} {[%emt 00:00:33]} 5. bxc5 {[%clk 00:13:16]} {[%emt 00:01:11]}
Qxc5 {[%clk 00:14:00]} {[%emt 00:00:41]} 6. Nf3 {[%clk 00:13:17]} {[%emt
00:00:04]} d6 {[%clk 00:13:09]} {[%emt 00:00:56]} 7. d4 {[%clk 00:12:40]}
{[%emt 00:00:42]} Qa5 {[%clk 00:12:59]} {[%emt 00:00:15]} 8. Qb3 {[%clk
00:12:20]} {[%emt 00:00:25]} Nf6 {[%clk 00:12:21]} {[%emt 00:00:44]} 9. Bd3
{[%clk 00:10:00]} {[%emt 00:02:24]} O-O {[%clk 00:12:20]} {[%emt 00:00:06]} 10.
O-O {[%clk 00:10:03]} {[%emt 00:00:02]} Nbd7 {[%clk 00:11:07]} {[%emt
00:01:19]} 11. Ng5 {[%clk 00:08:28]} {[%emt 00:01:39]} Nb6 {[%clk 00:10:18]}
{[%emt 00:00:55]} 12. Bd2 {[%clk 00:08:19]} {[%emt 00:00:12]} Qa4 {[%clk
00:09:43]} {[%emt 00:00:41]} 13. Qxa4 {[%clk 00:08:20]} {[%emt 00:00:04]} Nxa4
{[%clk 00:09:47]} 14. Bb5 {[%clk 00:08:16]} {[%emt 00:00:09]} Nb6 {[%clk
00:09:42]} {[%emt 00:00:11]} 15. f3 {[%clk 00:08:02]} {[%emt 00:00:18]} a6
{[%clk 00:09:45]} {[%emt 00:00:03]} 16. Bd3 {[%clk 00:07:52]} {[%emt 00:00:13]}
Nfd7 {[%clk 00:09:27]} {[%emt 00:00:24]} 17. f4 {[%clk 00:07:12]} {[%emt
00:00:45]} e5 {[%clk 00:07:37]} {[%emt 00:01:56]} 18. fxe5 {[%clk 00:06:08]}
{[%emt 00:01:08]} dxe5 {[%clk 00:07:40]} {[%emt 00:00:01]} 19. d5 {[%clk
00:05:43]} {[%emt 00:00:32]} Nc5 {[%clk 00:07:38]} {[%emt 00:00:07]} 20. Bc2
{[%clk 00:05:40]} {[%emt 00:00:07]} Nc4 {[%clk 00:07:40]} {[%emt 00:00:03]} 21.
Nf3 {[%clk 00:05:29]} {[%emt 00:00:16]} f5 {[%clk 00:07:38]} {[%emt 00:00:07]}
22. exf5 {[%clk 00:05:06]} {[%emt 00:00:29]} gxf5 {[%clk 00:07:41]} {[%emt
00:00:01]} 23. Bg5 {[%clk 00:03:33]} {[%emt 00:01:37]} Rf7 {[%clk 00:07:18]}
{[%emt 00:00:29]} 24. Nfd2 {[%clk 00:03:13]} {[%emt 00:00:25]} Nd6 {[%clk
00:06:31]} {[%emt 00:00:52]} 25. Nb3 {[%clk 00:03:11]} {[%emt 00:00:07]} Nd7
{[%clk 00:06:01]} {[%emt 00:00:35]} 26. Ra2 {[%clk 00:02:25]} {[%emt 00:00:52]}
h6 {[%clk 00:06:03]} {[%emt 00:00:02]} 27. Bh4 {[%clk 00:02:20]} {[%emt
00:00:10]} Nb6 {[%clk 00:05:47]} {[%emt 00:00:22]} 28. Rd1 {[%clk 00:01:55]}
{[%emt 00:00:29]} Nbc4 {[%clk 00:05:25]} {[%emt 00:00:27]} 29. Bf2 {[%clk
00:01:51]} {[%emt 00:00:09]} e4 {[%clk 00:04:56]} {[%emt 00:00:34]} 30. N1d2
{[%clk 00:01:49]} {[%emt 00:00:07]} Nxd2 {[%clk 00:04:43]} {[%emt 00:00:17]} 31.
Nxd2 {[%clk 00:01:52]} {[%emt 00:00:03]} Bxc3 {[%clk 00:04:47]} {[%emt
00:00:02]} 32. Bc5 {[%emt 00:00:05]} Be5 {[%clk 00:04:42]} {[%emt 00:00:08]} 33.
Bb3 {[%clk 00:01:43]} {[%emt 00:00:16]} Bd7 {[%clk 00:04:12]} {[%emt 00:00:35]}
34. Nc4 {[%clk 00:01:46]} {[%emt 00:00:01]} Nxc4 {[%clk 00:04:03]} {[%emt
00:00:14]} 35. Bxc4 {[%clk 00:01:50]} Kg7 {[%clk 00:03:44]} {[%emt 00:00:24]}
36. d6 {[%clk 00:01:38]} {[%emt 00:00:17]} Rff8 {[%clk 00:03:25]} {[%emt
00:00:24]} 37. Bd4 {[%clk 00:01:33]} {[%emt 00:00:10]} Kf6 {[%clk 00:03:28]}
{[%emt 00:00:03]} 38. Bxe5+ {[%clk 00:01:35]} {[%emt 00:00:03]} Kxe5 {[%clk
00:03:31]} {[%emt 00:00:02]} 39. Rd5+ {[%emt 00:00:03]} Kf6 {[%clk 00:03:33]}
{[%emt 00:00:02]} 40. Rdd2 {[%clk 00:01:13]} {[%emt 00:00:30]} b5 {[%clk
00:03:34]} {[%emt 00:00:04]} 41. Bb3 {[%clk 00:01:09]} {[%emt 00:00:09]} Rac8
{[%clk 00:03:30]} {[%emt 00:00:08]} 42. Rac2 {[%clk 00:01:11]} {[%emt
00:00:04]} Rxc2 {[%clk 00:03:09]} {[%emt 00:00:26]} 43. Rxc2 {[%clk 00:01:13]}
{[%emt 00:00:02]} Rc8 {[%clk 00:03:13]} {[%emt 00:00:01]} 44. Rd2 {[%clk
00:01:03]} {[%emt 00:00:15]} Rc3 {[%clk 00:03:16]} {[%emt 00:00:02]} 45. Bg8
{[%clk 00:01:00]} {[%emt 00:00:08]} Rxa3 {[%clk 00:03:16]} {[%emt 00:00:05]}
0-1